Cogmind - Beta 16 @@@ ROGUE MODE // 2025.12.06 @ 00:10:27 Player: Akamichi1342 Result: Destroyed by V1-JN9(j) with Overtuned Pulse Rifle Performance ------------- Evolutions (2) 1000 Regions Visited (7) 1400 Robots Destroyed (147) 735 Value Destroyed (4241) 4241 Prototype IDs (12) 240 Alien Tech Used (0) 0 Bonus (1483) 1483 TOTAL SCORE: 9099 Bonus ------- High Alert Combat Kills 197 Follower Combat Kills 486 Registered with UFD 300 Met Optimus in HQ 500 Cogmind --------- Core Integrity 0/550 Matter 300/300 Energy 100/100 System Corruption 3% Temperature Hot (262) Movement Core (350) Ox6 Location -8/Scraptown Parts ------- > --- POWER (1) -------- (None) > --- PROPULSION (3) --- (None) > --- UTILITY (4) ------ Large Storage Unit Advanced Targeting Computer > --- WEAPON (3) ------- (None) > --- INVENTORY (15) --- Titanium Leg Titanium Leg Titanium Leg Titanium Leg Titanium Leg Titanium Leg Compact Matter Pod (150) Improved Light Armor Plating Improved Medium Armor Plating Improved Medium Armor Plating Scrapoid Pod Flak Cannon Advanced Assault Cannon Long-range Missile Launcher Peak State ------------ > --- POWER ------------ Cooled Ion Engine > --- PROPULSION ------- Improved Titanium Leg Improved Titanium Leg Improved Titanium Leg > --- UTILITY ---------- Large Storage Unit Improved Light Armor Plating Improved Medium Armor Plating Hacking Suite > --- WEAPON ----------- High-powered Shotgun Advanced Assault Cannon Advanced EMP Blaster > --- INVENTORY -------- Titanium Leg Titanium Leg Titanium Leg Titanium Leg Titanium Leg Titanium Leg Compact Matter Pod Machine Analyzer Improved Medium Armor Plating Improved Medium Armor Plating Hacking Suite High-powered Shotgun Flak Cannon Flak Cannon Missile Launcher [Rating: 41] Favorites ----------- Power Cooled Ion Engine Engine Cooled Ion Engine Propulsion Improved Titanium Leg Treads Light Treads Leg Improved Titanium Leg Utility Large Storage Unit Device High-powered Tractor Beam Storage Large Storage Unit Processor Advanced Targeting Computer Hackware Hacking Suite Protection Hardened Light Armor Plating Weapon High-powered Shotgun Energy Gun Medium Laser Ballistic Gun High-powered Shotgun Ballistic Cannon Flak Cannon Launcher Advanced EMP Blaster Build | -11 -10 -9 -9 -8 -8 -8 -8 ------- Run | Yrd Mat Mat Min Mat Sto Rec Scr Slots Evolved 4 | . . 2 . 2 . . . Power . | . . . . . . . . Propulsion 1 | . . 1 . . . . . Utility 2 | . . 1 . 1 . . . Weapon 1 | . . . . 1 . . . Parts Attached 64 | 6 7 17 . 27 7 . . Power 6 | 1 . 4 . 1 . . . Engine 6 | 1 . 4 . 1 . . . Core . | . . . . . . . . Reactor . | . . . . . . . . Propulsion 23 | 2 2 8 . 11 . . . Treads 8 | 2 2 4 . . . . . Leg 15 | . . 4 . 11 . . . Wheel . | . . . . . . . . Hover . | . . . . . . . . Flight . | . . . . . . . . Utility 21 | 1 4 3 . 9 4 . . Device 2 | . . . . 1 1 . . Storage 5 | 1 3 . . 1 . . . Processor 2 | . 1 . . . 1 . . Hackware 3 | . . 1 . . 2 . . Protection 9 | . . 2 . 7 . . . Artifact . | . . . . . . . . Weapon 14 | 2 1 2 . 6 3 . . Energy Gun 1 | 1 . . . . . . . Energy Cannon . | . . . . . . . . Ballistic Gun 8 | 1 . 2 . 4 1 . . Ballistic Cannon 4 | . 1 . . 2 1 . . Launcher 1 | . . . . . 1 . . Special Weapon . | . . . . . . . . Impact Weapon . | . . . . . . . . Slashing Weapon . | . . . . . . . . Piercing Weapon . | . . . . . . . . Special Melee Weapon . | . . . . . . . . Unidentified Prototypes 3 | . . 2 . . 1 . . Parts Lost 20 | . 1 2 . 7 1 . 9 Power 1 | . . . . . . . 1 Propulsion 5 | . . 1 . 1 . . 3 Utility 5 | . . 1 . 2 . . 2 Weapon 9 | . 1 . . 4 1 . 3 Highest Loss Streak 9 | . 1 1 . 2 1 . 9 To Critical Strikes . | . . . . . . . . Average Backups 12 | . 5 13 14 14 13 13 13 Power . | . . . 2 1 . . . Propulsion 3 | . 1 2 1 3 6 6 6 Utility 3 | . 1 4 5 4 4 4 4 Weapon 4 | . 2 5 6 5 3 3 3 Tool/Special . | . . . . . . . . Unused Backups 22 | . . 3 . 7 1 . 11 Power . | . . . . . . . . Propulsion 6 | . . . . 2 . . 4 Utility 6 | . . . . 2 1 . 3 Weapon 9 | . . 3 . 3 . . 3 Tool/Special 1 | . . . . . . . 1 Average Slot Usage (%) 96 | . 98 95 88 96 98 100 99 Engine 10 | . 14 11 11 9 9 9 8 Treads 6 | . 27 12 . . . . . Leg 21 | . . 18 33 26 26 27 26 Storage 11 | . 14 11 11 13 9 9 9 Processor 4 | . 13 2 . . 3 9 9 Hackware 4 | . . 6 . . 9 9 8 Protection 10 | . . 10 11 17 13 9 8 Energy Gun 2 | . 14 1 . . . . . Ballistic Gun 16 | . 9 17 22 17 17 18 17 Ballistic Cannon 6 | . 4 2 . 8 9 9 8 Peak Build Rating 41 | 6 7 25 22 40 41 40 40 Average Rating 26 | 4 6 19 22 31 38 39 39 On Entrance 22 | . 6 7 22 22 40 40 39 Avg Prop Armor Cover (%) . | . . . . . . . . Naked Turns . | . . . . . . . . Heaviest Build 90 | 14 90 39 39 57 57 47 47 Greatest Support 60 | 40 40 60 45 60 60 60 60 Greatest Overweight (x) 28 | . 28 2 . 1 . . 1 Average Overweight (x) . | . . . . . . . . Largest Inventory Capacity 25 | 8 25 15 15 15 15 15 15 Average Capacity 15 | 6 17 15 15 15 15 15 15 Most Carried 15 | . 8 15 15 15 15 13 15 Average Carried 12 | . 5 13 14 14 13 13 13 Final Capacity 15 | 8 15 15 15 15 15 15 15 Final Carried 15 | . 6 14 15 15 13 13 15 Class Distribution -------------------- 39% | Mutant 25% | Tank 21% | Gunner 7% | Scavenger-Mutant 3% | Commander-Gunner Dominant Class ---------------- Mutant | -10/Materials Mutant | -9/Materials Mutant | -9/Mines Tank | -8/Materials Tank | -8/Storage Gunner | -8/Recycling Gunner | -8/Scraptown Resources | -11 -10 -9 -9 -8 -8 -8 -8 ----------- Run | Yrd Mat Mat Min Mat Sto Rec Scr Matter Collected 3827 | 218 250 779 76 1704 646 46 108 Remotely 687 | . . . . 687 . . . Salvage Created 5336 | . 564 1228 56 2091 1103 38 256 Parts 305 | . 36 74 2 116 65 1 11 Haulers Intercepted 18 | . 2 5 . 5 6 . . Recyclers Shooed 3 | . . 2 . 1 . . . Parts Field Recycled . | . . . . . . . . Retrieved Matter . | . . . . . . . . Parts Self-Destructed 1 | . . . . . . . 1 Prevented . | . . . . . . . . Parts Restored . | . . . . . . . . Kills | -11 -10 -9 -9 -8 -8 -8 -8 ------- Run | Yrd Mat Mat Min Mat Sto Rec Scr Combat Hostiles Destroyed 106 | . 16 24 3 41 18 1 3 Guns 82 | . 16 22 3 25 12 1 3 Cannons 23 | . . 2 . 16 5 . . AOE 1 | . . . . . 1 . . Classes Destroyed 16 | . 5 5 1 3 . . 2 Worker 6 | . 1 1 . 3 1 . . Builder 5 | . 2 1 . 1 1 . . Hauler 18 | . 2 5 . 5 6 . . Recycler 3 | . . 1 . 1 1 . . Mechanic 2 | . . 2 . . . . . Operator 5 | . . 1 . 2 2 . . Watcher 4 | . . 2 . 2 . . . Swarmer 21 | . 9 12 . . . . . Grunt 51 | . 7 4 1 29 10 . . Brawler 2 | . . . . 2 . . . Duelist 1 | . . . . 1 . . . Sentry 24 | . . 8 . 8 7 1 . Hunter 2 | . . . . 1 1 . . Ranger 1 | . . . . . . . 1 Scrapper 2 | . . . . . . . 2 Assembled 2 | . . . 2 . . . . Best Kill Streak 6 | . 4 4 2 6 5 1 3 Combat Bots Only 5 | . 4 4 2 5 3 1 3 Max Kills in Single Turn 3 | . 2 1 1 2 3 1 1 Gunslinging 1 | . 1 . . . . . . Exploded 1 | . . . . . 1 . . Melee . | . . . . . . . . Uniques/NPCs Destroyed . | . . . . . . . . Combat | -11 -10 -9 -9 -8 -8 -8 -8 -------- Run | Yrd Mat Mat Min Mat Sto Rec Scr Hostile Shots Fired 532 | . 60 143 12 157 61 2 97 Missed 136 | . 14 49 2 41 16 . 14 Hits 396 | . 46 94 10 116 45 2 83 Melee 6 | . . . 3 1 . . 2 Projectile 390 | . 46 94 7 115 45 2 81 AOE 1 | . . . . . . . 1 Critical Strikes 10 | . . 2 . 4 1 . 3 Actively Blocked 1 | . . . . 1 . . . Damage Taken 5852 | . 455 1057 188 1842 793 32 1485 Core 810 | . 93 112 35 266 46 . 258 Absorbed by Shields . | . . . . . . . . Redirected to Shielding 51 | . . . . 51 . . . Regen/Repaired (Parts) 830 | . 158 326 . . 346 . . Core Remaining (%) 75 | 100 62 . 63 . . . . Volleys Fired 325 | . 45 94 11 113 52 2 8 Largest 3 | . 2 2 2 3 3 2 3 Hottest 102 | . 80 80 46 102 90 50 87 Shots Fired 756 | . 86 188 22 312 121 4 23 Gun 612 | . 85 167 22 226 92 4 16 Cannon 143 | . 1 21 . 86 28 . 7 Launcher 1 | . . . . . 1 . . Special . | . . . . . . . . Kinetic 700 | . 42 177 22 312 120 4 23 Thermal 55 | . 44 11 . . . . . Explosive . | . . . . . . . . Electromagnetic 1 | . . . . . 1 . . Robot Hit Streak 25 | . 13 25 5 18 18 7 17 Robot Miss Streak 6 | . 3 2 3 6 4 1 3 Penetration Max . | . . . . . . . . Secondary Targets 10 | . 5 3 . 2 . . . Max Gunslinging Chain 1 | . 1 1 . 1 . . . Shots Hit Robots 534 | . 61 141 13 214 85 4 16 Core Hits 302 | . 30 50 5 129 77 2 9 Critical Kills 1 | . . . . . . . 1 Critical Parts Destroyed 4 | . . . . 3 1 . . Critical Strikes 8 | . 2 . . 4 1 . 1 Burn 2 | . 2 . . . . . . Destroy 5 | . . . . 3 1 . 1 Blast 1 | . . . . 1 . . . Melee Attacks . | . . . . . . . . Impact . | . . . . . . . . Slashing . | . . . . . . . . Piercing . | . . . . . . . . Sneak Attacks . | . . . . . . . . Combat Hostiles . | . . . . . . . . Follow-up Attacks . | . . . . . . . . Damage Inflicted 10209 | . 856 2267 187 4336 2089 109 365 Guns 7883 | . 820 1905 187 2961 1628 109 273 Cannons 1999 | . . 266 . 1307 347 . 79 Explosions 93 | . . . . . 93 . . Melee . | . . . . . . . . Ramming 234 | . 36 96 . 68 21 . 13 Kinetic 9352 | . 404 2057 187 4268 1975 109 352 Thermal 548 | . 416 114 . . 18 . . Explosive . | . . . . . . . . Electromagnetic 75 | . . . . . 75 . . Impact . | . . . . . . . . Slashing . | . . . . . . . . Piercing . | . . . . . . . . Highest Corruption 3 | . . . . . . . 3 Average Corruption 2 | . . . . . . . 2 Corruption Purged . | . . . . . . . . Corruption Blocked . | . . . . . . . . Overload Shots . | . . . . . . . . Overflow Damage 7 | . . . . 7 . . . Projectiles 7 | . . . . 7 . . . Explosions . | . . . . . . . . Melee . | . . . . . . . . Knockbacks 44 | . . 3 . 26 11 . 4 Impact 3 | . . 2 . 1 . . . Kinetic 37 | . . 1 . 22 10 . 4 Secondary 4 | . . . . 3 1 . . Self-Inflicted Damage 69 | . . . . . 69 . . Shots 2 | . . . . . 2 . . Rammed 10 | . 4 6 . . . . . Targets Rammed 30 | . 6 12 . 7 3 . 2 Kicked 17 | . . 5 . 7 3 . 2 Crushed 3 | . 2 1 . . . . . Highest Temperature 280 | . 123 204 20 242 119 . 280 Average Temperature 52 | . 30 55 9 54 38 . 153 Received Heat Transfer 2671 | . 168 306 118 954 333 9 783 Siege Activations . | . . . . . . . . Martial Activations . | . . . . . . . . Shielding Activations . | . . . . . . . . Robots Disrupted . | . . . . . . . . Combat Hostiles . | . . . . . . . . Robots Corrupted 1 | . . . . 1 . . . Combat Hostiles . | . . . . . . . . Parts Fried . | . . . . . . . . Impact Corruptions 1 | . . . . 1 . . . Robots Melted . | . . . . . . . . Combat Hostiles . | . . . . . . . . Parts Melted 5 | . 4 . . . . . 1 Heat Transferred 1715 | . 1332 333 . . 50 . . Parts Sabotaged . | . . . . . . . . Parts Stolen . | . . . . . . . . Parts Stripped . | . . . . . . . . Power Chain Reactions 1 | . . . . . 1 . . Alert | -11 -10 -9 -9 -8 -8 -8 -8 ------- Run | Yrd Mat Mat Min Mat Sto Rec Scr Maximum Alert Level 2 | . . 1 . 2 2 . . Low Security (%) 60 | 100 100 74 100 33 16 100 . Level 1 26 | . . 25 . 29 68 . . Level 2 12 | . . . . 36 14 . . Level 3 . | . . . . . . . . Level 4 . | . . . . . . . . Level 5 . | . . . . . . . . High Security . | . . . . . . . . Max Security . | . . . . . . . . Peak Influence 627 | . 164 256 75 627 483 114 . Initial 263 | . . . 75 . 263 114 . Average 180 | . 54 134 14 307 284 46 . Influence Increases 3932 | . 440 808 30 1347 1277 20 10 Destroy 0b10 Robot/C 2300 | . 320 480 20 860 600 20 . Destroy 0b10 Robot/NC 235 | . 25 65 . 75 60 . 10 Destroy Leader 586 | . 54 154 10 214 154 . . Allied During Kill 183 | . . . . 3 180 . . Successful Hack 154 | . 26 45 . 36 47 . . Select Force Hacks 30 | . . . . . 30 . . Disable Machine 60 | . . . . 45 15 . . Destroy Structure 39 | . . 4 . 24 11 . . Lose Combat Pursuer 345 | . 15 60 . 90 180 . . Influence Decreases 3932 | . 440 614 224 722 1609 313 10 Entered New Map 660 | . . . 119 . 362 179 . Time Decay 2417 | . 430 584 105 632 522 134 10 Lost Part 110 | . 10 20 . 70 10 . . Lost Ally 295 | . . 10 . 20 265 . . Purge Threat 450 | . . . . . 450 . . Squads Dispatched 20 | . 2 5 . 7 6 . . Investigation 8 | . 1 3 . 2 2 . . Extermination . | . . . . . . . . Reinforcement 7 | . 1 2 . 3 1 . . Assault 3 | . . . . 1 2 . . Garrison 2 | . . . . 1 1 . . Intercept . | . . . . . . . . Searches Triggered . | . . . . . . . . Construction Impeded 1 | . . . . 1 . . . Haulers Reinforced . | . . . . . . . . Active Scanning Responses . | . . . . . . . . Cargo Convoy Interrupts . | . . . . . . . . Stealth | -11 -10 -9 -9 -8 -8 -8 -8 --------- Run | Yrd Mat Mat Min Mat Sto Rec Scr Distress Signals 11 | . . 3 . 4 4 . . Communications Jammed . | . . . . . . . . Distress Signals . | . . . . . . . . Times Spotted 216 | . 30 46 12 63 48 1 16 Peak Tracking Total 13 | . 5 6 12 6 13 . 11 Tactical Retreats 17 | . 1 3 4 5 4 . . Traps | -11 -10 -9 -9 -8 -8 -8 -8 ------- Run | Yrd Mat Mat Min Mat Sto Rec Scr Traps Triggered 4 | . 1 2 . . 1 . . Indirectly . | . . . . . . . . Trap Hack Attempts . | . . . . . . . . Triggered . | . . . . . . . . Disarmed . | . . . . . . . . Reprogrammed . | . . . . . . . . Reused . | . . . . . . . . Traps Extracted . | . . . . . . . . Installed . | . . . . . . . . Triggered . | . . . . . . . . Machines | -11 -10 -9 -9 -8 -8 -8 -8 ---------- Run | Yrd Mat Mat Min Mat Sto Rec Scr Machines Disabled 4 | . . . . 3 1 . . Max in Single Turn 1 | . . . . 1 1 . . Garrison Access 2 | . . . . 1 1 . . Machines Repaired . | . . . . . . . . Machines Dismantled . | . . . . . . . . Machines Sabotaged . | . . . . . . . . Overloaded Fab Kills . | . . . . . . . . Hacking | -11 -10 -9 -9 -8 -8 -8 -8 --------- Run | Yrd Mat Mat Min Mat Sto Rec Scr Machines Accessed 50 | . 6 11 . 10 13 2 8 Terminals 31 | . 5 8 . 7 9 2 . Fabricators . | . . . . . . . . Repair Stations 5 | . 1 2 . . 2 . . Recycling Units 1 | . . . . . 1 . . Scanalyzers 3 | . . 1 . 2 . . . Garrison Access 2 | . . . . 1 1 . . Total Hacks 158 | . 15 36 . 29 38 3 37 Successful 104 | . 9 21 . 12 24 1 37 Failed 51 | . 5 14 . 16 14 2 . Catastrophic 14 | . . 6 . 5 3 . . Database Lockouts 3 | . 1 1 . 1 . . . Manual 61 | . 9 16 . 22 12 2 . Terminals 76 | . 11 20 . 22 20 3 . Fabricators . | . . . . . . . . Repair Stations 27 | . 4 13 . . 10 . . Recycling Units 3 | . . . . . 3 . . Scanalyzers 9 | . . 3 . 6 . . . Garrison Access 6 | . . . . 1 5 . . Terminal Hacks 66 | . 4 6 . 6 12 1 37 Record 30 | . . . . 1 . . 29 Robot Analysis 14 | . 4 . . 3 . . 7 Prototype ID Bank 1 | . . 1 . . . . . Open Door 2 | . . . . . 2 . . Branch Access Points 3 | . . 1 . 1 1 . . Terminal Index 2 | . . 1 . 1 . . . Scanalyzer Index 1 | . . . . . 1 . . Alert Level 4 | . . . . . 3 1 . Unreport Threat 3 | . . . . . 3 . . Recall Investigation 1 | . . 1 . . . . . Registered Components 3 | . . 2 . . 1 . . Registered Prototypes 1 | . . . . . 1 . . Proto ID Catalog 1 | . . . . . . . 1 Fabricator Hacks . | . . . . . . . . Repair Station Hacks 23 | . 4 11 . . 8 . . Scan Component 12 | . 2 6 . . 4 . . Repair 11 | . 2 5 . . 4 . . Recycling Unit Hacks 2 | . . . . . 2 . . Process 1 | . . . . . 1 . . Report Inventory 1 | . . . . . 1 . . Scanalyzer 5 | . . 1 . 4 . . . Retrieve Study 5 | . . 1 . 4 . . . Garrison Access Hacks 2 | . . . . 1 1 . . Seal Access 2 | . . . . 1 1 . . Unauthorized Hacks 6 | . 1 3 . 1 1 . . Terminals 5 | . 1 3 . 1 . . . Assimilate 1 | . . 1 . . . . . Botnet 1 | . . 1 . . . . . Operators 3 | . 1 1 . 1 . . . Fabricators . | . . . . . . . . Repair Stations . | . . . . . . . . Recycling Units 1 | . . . . . 1 . . Tunnel 1 | . . . . . 1 . . Scanalyzers . | . . . . . . . . Garrison Access . | . . . . . . . . Data Cores Recovered 2 | . . . . 1 1 . . Used . | . . . . . . . . Hacking Detections 37 | . 5 10 . 9 10 3 . Full Trace Events 6 | . 2 1 . 2 1 . . Feedback Events . | . . . . . . . . Feedback Blocked . | . . . . . . . . Robot Schematics Acquired . | . . . . . . . . Robots Built . | . . . . . . . . Authchips . | . . . . . . . . Time . | . . . . . . . . Total Robot Build Rating . | . . . . . . . . Part Schematics Acquired . | . . . . . . . . Parts Built . | . . . . . . . . Authchips . | . . . . . . . . Time . | . . . . . . . . Total Part Build Rating . | . . . . . . . . Part Studies Acquired 5 | . . 1 . 4 . . . Parts Repaired 11 | . 2 5 . . 4 . . Time 357 | . 52 160 . . 145 . . Parts Recycled . | . . . . . . . . Recycled Matter 277 | . . . . . 277 . . Retrieved Matter . | . . . . . . . . Retrieved Components . | . . . . . . . . Parts Scanalyzed . | . . . . . . . . Part Schematics Acquired . | . . . . . . . . Parts Damaged . | . . . . . . . . Bothacking | -11 -10 -9 -9 -8 -8 -8 -8 ------------ Run | Yrd Mat Mat Min Mat Sto Rec Scr Used RIF Installer . | . . . . . . . . Robots Hacked . | . . . . . . . . Non-combat . | . . . . . . . . Combat . | . . . . . . . . Robot Hacks Applied . | . . . . . . . . Relay Couplers Released . | . . . . . . . . Fabnet Peak Effective % . | . . . . . . . . Robots Rewired . | . . . . . . . . Allies Hacked . | . . . . . . . . Hacks Repelled . | . . . . . . . . Allies | -11 -10 -9 -9 -8 -8 -8 -8 -------- Run | Yrd Mat Mat Min Mat Sto Rec Scr Total Allies 14 | . . 1 1 . 12 . . Largest Group 10 | . . 1 1 1 10 . . Highest-Rated Group 173 | . . 10 31 31 173 . . Highest-Rated Ally 31 | . . 10 31 31 31 . . Total Orders 1 | . . 1 . . . . . STAY 1 | . . 1 . . . . . Ally Attacks 134 | . . . . 14 120 . . Total Damage 1646 | . . . . 254 1392 . . Kills 16 | . . . . 3 13 . . Allies Corrupted . | . . . . . . . . Allies Melted 2 | . . . . . 1 . 1 Intel | -11 -10 -9 -9 -8 -8 -8 -8 ------- Run | Yrd Mat Mat Min Mat Sto Rec Scr Active Infowar (turns) . | . . . . . . . . Robot Analysis Total 13 | . 4 . . 2 . . 7 Derelict Logs Recovered . | . . . . . . . . Drone Launches 16 | . . . . . 16 . . Drone Recoveries . | . . . . . . . . Exploration | -11 -10 -9 -9 -8 -8 -8 -8 ------------- Run | Yrd Mat Mat Min Mat Sto Rec Scr Turns Passed 10351 | 63 1458 2541 500 2319 1457 343 1670 Spaces Moved 5690 | 40 525 1384 306 1194 740 253 1248 Core 9 | 8 1 . . . . . . Treads 1044 | 32 524 488 . . . . . Legs 4637 | . . 896 306 1194 740 253 1248 Wheels . | . . . . . . . . Hover . | . . . . . . . . Flight . | . . . . . . . . Fastest Speed 50 | 50 160 120 120 120 130 130 130 Average Speed 142 | 138 218 135 120 144 130 130 130 Slowest Speed 1450 | 160 1450 260 120 200 130 130 200 Overloaded Moves . | . . . . . . . . Propulsion Burnouts . | . . . . . . . . Robots Hopped . | . . . . . . . . Potential Cave-ins . | . . . . . . . . Cave-ins Triggered . | . . . . . . . . Exploration Rate (%) 65 | 4 78 90 48 87 93 37 84 Regions Visited 7 Branch Regions 4 Pre-discovered Areas 4 | . . . 2 . 2 . . Known Exits Taken 3 | . . 1 . 1 1 . . Unknown Exits Taken 4 | 1 1 . 1 . . 1 . Scrap Searched 5 | . . . 1 . . . 4 Spaces Dug . | . . . . . . . . Terrain Destroyed 23 | . . . . 19 4 . . Melee . | . . . . . . . . Projectile 19 | . . . . 19 . . . AOE 4 | . . . . . 4 . . Terrain Rammed . | . . . . . . . . Walls Destroyed . | . . . . . . . . Machines Disabled . | . . . . . . . . Actions | -11 -10 -9 -9 -8 -8 -8 -8 --------- Run | Yrd Mat Mat Min Mat Sto Rec Scr Total 7277 | 45 738 1856 417 1552 1130 262 1277 Wait 1036 | . 144 312 100 163 294 7 16 Move 5683 | 39 524 1383 305 1193 739 252 1248 Hop . | . . . . . . . . Pick Up 41 | . 4 15 1 19 . . 2 Fast Attach 38 | 6 5 13 . 5 9 . . Attach 12 | . 1 1 . 8 2 . . Detach 1 | . . . . . 1 . . Swap 35 | . 7 8 . 17 2 1 . Drop 55 | . 2 18 . 27 7 . 1 Fire 325 | . 45 94 11 113 52 2 8 Melee . | . . . . . . . . Ram . | . . . . . . . . Kick 17 | . . 5 . 7 3 . 2 Crush 13 | . 6 7 . . . . . Escape Stasis 5 | . . . . . 5 . . Rewire 9 | . . . . . 9 . . Trap . | . . . . . . . . Miscellaneous 7 | . . . . . 7 . . Route ------- -11/Scrapyard -10/Materials (discovered 4 exits: *Mat x3 / [*Min]) -9/Materials (discovered 4 exits: *Mat x2 / *Min x2) -9/Mines (discovered 2 exits: *Mat / [*Exi]) -8/Materials (discovered 4 exits: [*Fac x2] / *Sto x2) -8/Storage (discovered 2 exits: [*Fac] / *Rec) -8/Recycling -8/Scraptown (discovered 2 exits: [*Fac x2]) History --------- Turn | Location | Event 13 | -11/Scrapyard | Discovered new exit (range 15) 64 | -11/Scrapyard | Entered Materials 206 | -10/Materials | Discovered new exit (range 16) 303 | -10/Materials | Build established: Mutant 535 | -10/Materials | Discovered new exit (range 7) 996 | -10/Materials | Discovered new exit (range 16) 1308 | -10/Materials | Repaired Lgt. Treads 1336 | -10/Materials | Repaired Lgt. Treads 1447 | -10/Materials | Discovered new exit (range 4) 1492 | -10/Materials | Central database locked down 1522 | -10/Materials | Entered another Materials area 1522 | -9/Materials | Evolved 2 slots: Propulsion x1, Utility x1 1596 | -9/Materials | Identified exit to Mines 2035 | -9/Materials | Central database locked down 2131 | -9/Materials | Build established: Scavenger-Mutant 2825 | -9/Materials | Repaired Hvy. Assault Rifle+ 2859 | -9/Materials | Repaired Hvy. Assault Rifle+ 2892 | -9/Materials | Repaired Hrd. Light Armor Plating 2913 | -9/Materials | Build established: Mutant 2926 | -9/Materials | Repaired Hrd. Light Armor Plating 2999 | -9/Materials | Discovered new exit (range 12) 3660 | -9/Materials | Discovered new exit (range 13) 4007 | -9/Materials | Repaired Hvy. Assault Rifle+ 4063 | -9/Materials | Entered Mines 4102 | -9/Mines | Assembled infested the area 4327 | -9/Mines | Learned location of Storage (-8) 4373 | -9/Mines | Escorted by a lone wolf Derelict 4504 | -9/Mines | Discovered new exit (range 9) 4536 | -9/Mines | Deemed a non-threat by the Exiles lab entrance 4538 | -9/Mines | Discovered new exit (range 5) 4563 | -9/Mines | Entered Materials 4563 | -8/Materials | Accompanied by 1 ally 4563 | -8/Materials | Evolved 2 slots: Utility x1, Weapon x1 4881 | -8/Materials | Build established: Tank 5405 | -8/Materials | Garrison activated, responded to threat 5620 | -8/Materials | Discovered new exit (range 5) 5840 | -8/Materials | Identified exit to Storage 6084 | -8/Materials | Discovered new exit (range 9) 6233 | -8/Materials | Central database locked down 6563 | -8/Materials | First assault squad dispatched 6882 | -8/Materials | Entered Storage 7100 | -8/Storage | Lost 6 allies 7233 | -8/Storage | Core integrity fell below 50% 7475 | -8/Storage | Garrison activated, responded to threat 7552 | -8/Storage | Identified exit to Recycling 7556 | -8/Storage | Assisted by bots powering up and referring to "LRC-V3" 7631 | -8/Storage | Discovered new exit (range 16) 7807 | -8/Storage | Learned location of Armory (-4) 7944 | -8/Storage | Repaired Hpw. Shotgun+ 8055 | -8/Storage | Met a pair of Derelict thieves 8132 | -8/Storage | Lost 8 allies 8219 | -8/Storage | Repaired Hpw. Shotgun+ 8265 | -8/Storage | Repaired Imp. Medium Armor Plating 8310 | -8/Storage | Repaired Imp. Titanium Leg 8335 | -8/Storage | Used back door to open Recycling access 8339 | -8/Storage | Entered Recycling 8521 | -8/Recycling | Build established: Gunner 8593 | -8/Recycling | Scanned before Scraplab entrance 8612 | -8/Recycling | Entered Scraplab 8628 | -8/Recycling | Discovered new exit (range 3) 8682 | -8/Recycling | Entered Scraptown 8980 | -8/Scraptown | Discovered new exit (range 5) 9108 | -8/Scraptown | Visited Cyclists 9156 | -8/Scraptown | Visited The Evicted 9209 | -8/Scraptown | Visited Symbiants 9240 | -8/Scraptown | Visited Shadow of the Wyrm 9514 | -8/Scraptown | Visited UFD Registry 9514 | -8/Scraptown | Registered with UFD as "Longcell" 9534 | -8/Scraptown | Visited Assassins FH 9553 | -8/Scraptown | Visited Awakened 9607 | -8/Scraptown | Entered Cyclist Reading Room 9744 | -8/Scraptown | Visited Chapter 10 9787 | -8/Scraptown | Visited LU-1G1's Boring Crew 9864 | -8/Scraptown | Visited Science Testing Area 9912 | -8/Scraptown | Visited DA-N13 Charitable Foundation 9917 | -8/Scraptown | Found DCF Scrap (32 items) 9965 | -8/Scraptown | Visited Scrap Suit Storage 9995 | -8/Scraptown | Visited Sword Containment 10016 | -8/Scraptown | Visited Analyses Database 10046 | -8/Scraptown | Visited Scrapoid Pod Storage 10052 | -8/Scraptown | Found Scrapoid Pod 10077 | -8/Scraptown | Visited Science Guys 10198 | -8/Scraptown | Met Optimus 10198 | -8/Scraptown | Accepted into 0bPrime 10289 | -8/Scraptown | Civil war broke out across Scraptown 10343 | -8/Scraptown | Discovered new exit (range 11) 10350 | -8/Scraptown | Core integrity fell below 20% 10352 | -8/Scraptown | Destroyed by V1-JN9(j) with Overtuned Pulse Rifle Last Messages --------------- 10345_ Imp. Medium Armor Plating destroyed. 10347_ UG-B8I(j) heat spikes uncontrollably. 10347_ Hpw. Shotgun+ destroyed. 10347_ UG-B8I(j) overheating. 10347_ Imp. Titanium Leg destroyed. 10347_ Critical hit (Burn: +50). 10349_ 82-W95(c): "It's really too bad I left my Metacruncher at home. That would scare a few away." 10349_ QS-750(x) sneak attacks. 10349_ 82-W95(c) suffers critical hit (Impale). 10349_ 82-W95(c) destroyed. 10349_ Cld. Ion Engine destroyed. 10349_ Hacking Suite destroyed. 10349_ Critical hit (Burn: +50). 10351_ QS-750(x) switches sides: "Sorry everyone but I think they're right!" 10351_ Kicked V1-JN9(j). 10352_ QS-750(x) destroyed. 10352_ Imp. Titanium Leg destroyed. Map ----- +----------------------------------------------------+ | | | | | | | | | | | | | | | | | ?????????????????????????????????????????????????? | | ?????????????????????????????????????????????????? | | ?????????????????????????????????????????????????? | | ?????????????????????????????????????????????????? | | ?????????????????????????????????????????????????? | | ?????????????????????????????????????????????????? | | ?????????????????????????????????????????????????? | | ?????????????????????????????????????????????????? | | ?????????????????????????????????????????????????? | | ?????????????????????????????????????????????????? | | ?????????????????????????????????????????????????? | | ??????????????????????????????##?????????????????? | | ?????????????????????????????""#?????????????????? | | ?????????????????#####??????"="#?????????????????? | | ?????????????????#; !#######=